Cogmind - Beta 9.2 @@@ ROGUE MODE // 2019.11.13 @ 14:19:28 Player: Ctrl_Alt_X Result: Destroyed by G-47 Trooper with Particle Gun Performance ------------- Evolutions (3) 1500 Regions Visited (8) 1600 Robots Destroyed (93) 465 Value Destroyed (3328) 3328 Prototype IDs (3) 60 Alien Tech Used (0) 0 Bonus (607) 607 TOTAL SCORE: 7560 Bonus ------- Pacifist 200 High Alert Combat Kills 407 Cogmind --------- Core Integrity 0/700 Matter 280/300 Energy 160/160 System Corruption 1% Temperature Cool (21) Movement Rolling (160) Ox6 Location -7/Lower Caves Parts ------- > --- POWER (1) -------- Light Nuclear Core > --- PROPULSION (3) --- Armored Huge Wheel > --- UTILITY (7) ------ Large Storage Unit High-capacity Storage Unit High-capacity Storage Unit High-capacity Storage Unit Damper Plating > --- WEAPON (2) ------- Heavy Laser Particle Cannon > --- INVENTORY (34) --- Aluminum Leg Armored Huge Wheel Improved Heat Sink Improved Heat Sink Improved Heat Sink Large Storage Unit Large Storage Unit Large Storage Unit Large Storage Unit Enhanced Optical Array Experimental Sensor Array Advanced Signal Interpreter Advanced Terrain Scanner Transport Network Coupler Hardened Light Armor Plating Hardened Light Armor Plating Hardened Heavy Armor Plating System Backup Module Particle Cannon Particle Cannon Peak State ------------ > --- POWER ------------ Antimatter Reactor > --- PROPULSION ------- Armored Wheel Armored Huge Wheel > --- UTILITY ---------- Improved Heat Sink Large Storage Unit Large Storage Unit High-capacity Storage Unit High-capacity Storage Unit Advanced Targeting Computer Advanced Targeting Computer > --- WEAPON ----------- Gauss Rifle Flak Gun > --- INVENTORY -------- Armored Huge Wheel Armored Huge Wheel Large Storage Unit Large Storage Unit Large Storage Unit Large Storage Unit Large Storage Unit Enhanced Optical Array Experimental Sensor Array Transport Network Coupler Hardened Light Armor Plating Hardened Light Armor Plating Hardened Heavy Armor Plating Improved Light Armor Plating Damper Plating Damper Plating System Backup Module Heavy Laser Heavy Laser Heavy Laser Heavy Laser Particle Cannon Particle Cannon Particle Cannon Particle Cannon [Rating: 49] Favorites ----------- Power Antimatter Reactor Engine Ion Engine Power Core Micro Nuclear Core Reactor Antimatter Reactor Propulsion Compact Wheel Wheel Compact Wheel Utility Large Storage Unit Device Improved Heat Sink Storage Large Storage Unit Processor Advanced Targeting Computer Protection Damper Plating Weapon Particle Cannon Energy Gun EM Pulse Gun Energy Cannon Particle Cannon Ballistic Gun Flak Gun Ballistic Cannon Advanced Assault Cannon Launcher Grenade Launcher Slashing Weapon Great Axe Build | -11 -10 -9 -9 -8 -7 -7 -7 -7 ------- Run | Scr Mat Mat Min Mat Fac Was Fac Low Slots Evolved 6 | . . 2 . 2 2 . . . Power . | . . . . . . . . . Propulsion 1 | . . 1 . . . . . . Utility 5 | . . 1 . 2 2 . . . Weapon . | . . . . . . . . . Parts Attached 93 | 6 2 6 . 21 22 4 21 11 Power 13 | 1 . 1 . 4 1 2 3 1 Engine 6 | 1 . 1 . 2 . 1 1 . Core 5 | . . . . 2 1 . 1 1 Reactor 2 | . . . . . . 1 1 . Propulsion 17 | 2 . 1 . 5 3 . 4 2 Treads . | . . . . . . . . . Leg . | . . . . . . . . . Wheel 17 | 2 . 1 . 5 3 . 4 2 Hover . | . . . . . . . . . Flight . | . . . . . . . . . Utility 25 | 1 2 2 . 3 8 . 6 3 Device 8 | . . 1 . 1 3 . 3 . Storage 10 | 1 2 1 . 1 2 . 3 . Processor 2 | . . . . 1 1 . . . Hackware . | . . . . . . . . . Protection 5 | . . . . . 2 . . 3 Artifact . | . . . . . . . . . Weapon 38 | 2 . 2 . 9 10 2 8 5 Energy Gun 20 | 2 . 2 . 6 2 2 3 3 Energy Cannon 10 | . . . . . 7 . 1 2 Ballistic Gun 4 | . . . . 1 . . 3 . Ballistic Cannon 2 | . . . . 1 . . 1 . Launcher 1 | . . . . 1 . . . . Special Weapon . | . . . . . . . . . Impact Weapon . | . . . . . . . . . Slashing Weapon 1 | . . . . . 1 . . . Piercing Weapon . | . . . . . . . . . Special Melee Weapon . | . . . . . . . . . Unidentified Prototypes 3 | . . . . 2 1 . . . Parts Lost 39 | . . . . 10 4 . 14 11 Power 5 | . . . . 1 . . 3 1 Propulsion 11 | . . . . 3 . . 5 3 Utility 5 | . . . . 1 1 . 1 2 Weapon 18 | . . . . 5 3 . 5 5 Highest Loss Streak 6 | . . . . 3 2 . 3 6 Average Slot Usage (%) 93 | . 99 99 100 94 99 99 93 77 Engine 2 | . 14 11 11 4 . 1 1 . Core 3 | . . . . 3 7 4 . 7 Reactor 1 | . . . . . . 1 4 . Wheel 20 | . 28 32 33 25 23 23 17 9 Device 4 | . . 9 . 1 3 7 6 3 Storage 30 | . 27 23 33 35 30 30 30 30 Processor 10 | . . . . 6 15 15 15 4 Protection 1 | . . . . . 3 . . 6 Energy Gun 8 | . 28 22 22 9 9 6 4 2 Energy Cannon 3 | . . . . . 4 3 1 10 Ballistic Gun 1 | . . . . 2 . . 4 . Ballistic Cannon 1 | . . . . 1 . . 3 . Naked Turns . | . . . . . . . . . Heaviest Build 171 | 10 38 57 57 75 112 123 140 171 Greatest Support 48 | 32 32 48 48 48 42 42 42 44 Greatest Overweight (x) 10 | . 1 1 1 2 3 2 10 6 Average Overweight (x) 2 | . . . 1 1 2 2 3 4 Largest Inventory Capacity 34 | 6 16 22 22 28 32 32 34 34 Average Capacity 29 | 4 15 16 22 27 31 32 32 34 Most Carried 34 | 5 16 17 21 28 32 32 34 34 Average Carried 26 | 2 12 14 18 22 30 31 31 28 Final Capacity 34 | 6 16 22 22 28 32 32 34 34 Final Carried 34 | 4 16 17 21 28 32 32 34 22 Class Distribution -------------------- 90% | Hauler-Mutant 9% | Mutant Dominant Class ---------------- Mutant | -10/Materials Mutant | -9/Materials Hauler-Mutant | -9/Mines Hauler-Mutant | -8/Materials Hauler-Mutant | -7/Factory Hauler-Mutant | -7/Waste Hauler-Mutant | -7/Factory Hauler-Mutant | -7/Lower Caves Resources | -11 -10 -9 -9 -8 -7 -7 -7 -7 ----------- Run | Scr Mat Mat Min Mat Fac Was Fac Low Matter Collected 1958 | 244 . 76 20 429 287 40 622 240 Remotely . | . . . . . . . . . Salvage Created 3491 | . . 237 . 837 821 . 1213 383 Parts 159 | . . 13 . 51 32 . 53 10 Haulers Intercepted 2 | . . . . 1 . . 1 . Recyclers Shooed 3 | . . . . 2 . . 1 . Parts Field Recycled . | . . . . . . . . . Retrieved Matter . | . . . . . . . . . Parts Self-Destructed 8 | . . . . . . . . 8 Prevented . | . . . . . . . . . Kills | -11 -10 -9 -9 -8 -7 -7 -7 -7 ------- Run | Scr Mat Mat Min Mat Fac Was Fac Low Combat Hostiles Destroyed 74 | . . 3 . 23 14 . 26 8 Melee 3 | . . . . . 3 . . . Guns 41 | . . 2 . 13 4 . 19 3 Cannons 15 | . . . . 1 2 . 7 5 AOE 13 | . . . . 9 4 . . . Classes Destroyed 13 | . . 4 . 6 3 . . . Worker 2 | . . 1 . 1 . . . . Builder 4 | . . . . 3 . . 1 . Hauler 2 | . . . . 1 . . 1 . Recycler 7 | . . 1 . 3 2 . 1 . Mechanic 1 | . . . . . 1 . . . Operator 1 | . . . . 1 . . . . Watcher 2 | . . . . 1 1 . . . Swarmer 16 | . . . . 10 . . 5 1 Grunt 44 | . . 2 . 12 11 . 15 4 Duelist 4 | . . . . . 1 . 1 2 Sentry 5 | . . 1 . . 1 . 2 1 Hunter 2 | . . . . 1 . . 1 . Programmer 3 | . . . . . 1 . 2 . Best Kill Streak 9 | . . 5 . 9 5 . 5 5 Combat Bots Only 5 | . . 3 . 4 4 . 5 5 Max Kills in Single Turn 5 | . . 2 . 3 5 . 2 1 Gunslinging . | . . . . . . . . . Exploded 2 | . . . . 2 2 . . . Melee 1 | . . . . . 1 . . . Uniques/NPCs Destroyed . | . . . . . . . . . Combat | -11 -10 -9 -9 -8 -7 -7 -7 -7 -------- Run | Scr Mat Mat Min Mat Fac Was Fac Low Damage Taken 6273 | . . 183 . 922 873 . 2159 2136 Core 955 | . . 89 . 158 144 . 343 221 Absorbed by Shields . | . . . . . . . . . Core Remaining (%) 87 | 100 100 . 77 71 . . . . Volleys Fired 214 | . . 11 . 66 21 . 85 31 Largest 2 | . . 2 . 2 2 . 2 2 Hottest 150 | . . 80 . 90 126 . 150 138 Shots Fired 397 | . . 22 . 107 40 . 167 61 Gun 249 | . . 22 . 70 22 . 108 27 Cannon 125 | . . . . 14 18 . 59 34 Launcher 23 | . . . . 23 . . . . Special . | . . . . . . . . . Kinetic 152 | . . . . 30 . . 96 26 Thermal 150 | . . . . 22 22 . 71 35 Explosive 23 | . . . . 23 . . . . Electromagnetic 72 | . . 22 . 32 18 . . . Robot Hit Streak 39 | . . 11 . 10 38 . 39 25 Robot Miss Streak 8 | . . 2 . 6 . . 8 3 Penetration Max 1 | . . . . . . . 1 . Secondary Targets . | . . . . . . . . . Shots Hit Robots 304 | . . 15 . 64 42 . 137 46 Core Hits 198 | . . 9 . 66 26 . 70 27 Critical Hits . | . . . . . . . . . Critical Kills . | . . . . . . . . . Critical Parts Destroyed . | . . . . . . . . . Melee Attacks 7 | . . . . . 7 . . . Impact . | . . . . . . . . . Slashing 7 | . . . . . 7 . . . Piercing . | . . . . . . . . . Sneak Attacks 1 | . . . . . 1 . . . Combat Hostiles . | . . . . . . . . . Follow-up Attacks . | . . . . . . . . . Damage Inflicted 8499 | . . 245 . 2112 2265 . 2823 1054 Guns 3531 | . . 198 . 495 341 . 1952 545 Cannons 1888 | . . . . 183 325 . 871 509 Explosions 2791 | . . 47 . 1434 1310 . . . Melee 289 | . . . . . 289 . . . Ramming . | . . . . . . . . . Kinetic 2476 | . . . . 290 . . 1659 527 Thermal 3232 | . . 47 . 135 1359 . 1164 527 Explosive 1726 | . . . . 1434 292 . . . Electromagnetic 776 | . . 198 . 253 325 . . . Impact . | . . . . . . . . . Slashing 289 | . . . . . 289 . . . Piercing . | . . . . . . . . . Highest Corruption 1 | . . . . . 1 1 1 1 Average Corruption 1 | . . . . . 1 1 1 1 Corruption Purged . | . . . . . . . . . Effects 7 | . . . . . 1 2 2 2 Message Errors 3 | . . . . . . 1 1 1 Energy Discharges 4 | . . . . . 1 1 1 1 Overload Shots . | . . . . . . . . . Overflow Damage 208 | . . . . 31 159 . 13 5 Projectiles 40 | . . . . . 22 . 13 5 Explosions 158 | . . . . 31 127 . . . Melee 10 | . . . . . 10 . . . Knockbacks 11 | . . . . 4 . . 7 . Impact . | . . . . . . . . . Kinetic 9 | . . . . 4 . . 5 . Secondary 2 | . . . . . . . 2 . Self-Inflicted Damage 257 | . . 33 . 23 201 . . . Shots 6 | . . 1 . 1 4 . . . Rammed . | . . . . . . . . . Targets Rammed . | . . . . . . . . . Kicked . | . . . . . . . . . Crushed . | . . . . . . . . . Highest Temperature 354 | . . 28 . 184 226 . 272 354 Average Temperature 92 | . . 10 . 49 124 . 97 120 Received Heat Transfer 1914 | . . 81 . 369 303 . 663 498 Effects 2 | . . . . . . . 1 1 Energy Bleed 2 | . . . . . . . 1 1 Siege Activations . | . . . . . . . . . Robots Corrupted 2 | . . 1 . . 1 . . . Combat Hostiles 2 | . . 1 . . 1 . . . Parts Fried 4 | . . 3 . . 1 . . . Impact Corruptions . | . . . . . . . . . Robots Melted . | . . . . . . . . . Combat Hostiles . | . . . . . . . . . Parts Melted 8 | . . . . . 2 . 3 3 Heat Transferred 4931 | . . . . 407 1490 . 2072 962 Parts Sabotaged . | . . . . . . . . . Parts Stolen . | . . . . . . . . . Parts Stripped . | . . . . . . . . . Power Chain Reactions 3 | . . 1 . . 2 . . . Missiles Intercepted . | . . . . . . . . . Alert | -11 -10 -9 -9 -8 -7 -7 -7 -7 ------- Run | Scr Mat Mat Min Mat Fac Was Fac Low Peak Influence 907 | . 15 154 60 614 907 322 498 . Average Influence 351 | . 1 66 60 383 632 322 331 . Maximum Alert Level 3 | . . . . 2 3 1 2 . Low Security (%) 20 | 100 100 100 100 14 . . 3 . Level 1 42 | . . . . 26 14 100 73 . Level 2 26 | . . . . 59 41 . 22 . Level 3 9 | . . . . . 43 . . . Level 4 . | . . . . . . . . . Level 5 . | . . . . . . . . . High Security . | . . . . . . . . . Max Security . | . . . . . . . . . Squads Dispatched 9 | . . . . 2 3 . 4 . Investigation 3 | . . . . . . . 3 . Extermination 2 | . . . . . 1 . 1 . Reinforcement 2 | . . . . 2 . . . . Assault 2 | . . . . . 2 . . . Garrison . | . . . . . . . . . Intercept . | . . . . . . . . . Construction Impeded 1 | . . . . 1 . . . . Haulers Reinforced . | . . . . . . . . . Stealth | -11 -10 -9 -9 -8 -7 -7 -7 -7 --------- Run | Scr Mat Mat Min Mat Fac Was Fac Low Distress Signals 7 | . . . . 4 1 . 2 . Communications Jammed . | . . . . . . . . . Distress Signals . | . . . . . . . . . Times Spotted 101 | . 1 4 . 30 22 . 29 15 Peak Tracking Total 7 | . 1 3 . 6 6 . 5 7 Tactical Retreats 3 | . . . . . . . 1 2 Traps | -11 -10 -9 -9 -8 -7 -7 -7 -7 ------- Run | Scr Mat Mat Min Mat Fac Was Fac Low Traps Triggered 5 | . . . . . 2 . 3 . Indirectly . | . . . . . . . . . Trap Hack Attempts . | . . . . . . . . . Triggered . | . . . . . . . . . Disarmed . | . . . . . . . . . Reprogrammed . | . . . . . . . . . Reused . | . . . . . . . . . Traps Extracted . | . . . . . . . . . Installed . | . . . . . . . . . Triggered . | . . . . . . . . . Machines | -11 -10 -9 -9 -8 -7 -7 -7 -7 ---------- Run | Scr Mat Mat Min Mat Fac Was Fac Low Machines Disabled 7 | . . 1 . . 5 . 1 . Max in Single Turn 2 | . . 1 . . 2 . 1 . Machines Sabotaged . | . . . . . . . . . Garrisons Compromised . | . . . . . . . . . Overloaded Fab Kills . | . . . . . . . . . Fab Network Shutdowns 1 | . . . . . 1 . . . Hacking | -11 -10 -9 -9 -8 -7 -7 -7 -7 --------- Run | Scr Mat Mat Min Mat Fac Was Fac Low Machines Accessed 12 | . . 1 . 3 5 . 3 . Terminals 5 | . . 1 . 3 1 . . . Fabricators 2 | . . . . . 1 . 1 . Repair Stations 5 | . . . . . 3 . 2 . Recycling Units . | . . . . . . . . . Scanalyzers . | . . . . . . . . . Garrison Access . | . . . . . . . . . Total Hacks 38 | . . 3 . 11 12 . 12 . Successful 16 | . . 1 . 3 6 . 6 . Failed 22 | . . 2 . 8 6 . 6 . Catastrophic 2 | . . . . 1 1 . . . Database Lockouts . | . . . . . . . . . Manual 13 | . . 3 . 10 . . . . Terminals 17 | . . 3 . 11 3 . . . Fabricators 5 | . . . . . 2 . 3 . Repair Stations 16 | . . . . . 7 . 9 . Recycling Units . | . . . . . . . . . Scanalyzers . | . . . . . . . . . Garrison Access . | . . . . . . . . . Terminal Hacks 3 | . . . . 2 1 . . . Part Schematic 1 | . . . . 1 . . . . Branch Access Points 1 | . . . . 1 . . . . Zone Layout 1 | . . . . . 1 . . . Fabricator Hacks 4 | . . . . . 2 . 2 . Load Schematic 2 | . . . . . 1 . 1 . Build 2 | . . . . . 1 . 1 . Repair Station Hacks 7 | . . . . . 3 . 4 . Scan Component 4 | . . . . . 2 . 2 . Repair 2 | . . . . . 1 . 1 . Refit 1 | . . . . . . . 1 . Recycling Unit Hacks . | . . . . . . . . . Scanalyzer . | . . . . . . . . . Garrison Access Hacks . | . . . . . . . . . Unauthorized Hacks 9 | . . 4 . 5 . . . . Terminals 2 | . . 1 . 1 . . . . Botnet 1 | . . 1 . . . . . . Disrupt 1 | . . . . 1 . . . . Fabricators . | . . . . . . . . . Repair Stations . | . . . . . . . . . Recycling Units . | . . . . . . . . . Scanalyzers . | . . . . . . . . . Garrison Access . | . . . . . . . . . Data Cores Recovered 1 | . . . . 1 . . . . Used 1 | . . . . 1 . . . . Hacking Detections 11 | . . 1 . 3 4 . 3 . Full Trace Events 4 | . . . . 1 . . 3 . Feedback Events . | . . . . . . . . . Feedback Blocked . | . . . . . . . . . Robot Schematics Acquired . | . . . . . . . . . Robots Built . | . . . . . . . . . Matter . | . . . . . . . . . Time . | . . . . . . . . . Total Robot Build Rating . | . . . . . . . . . Part Schematics Acquired 1 | . . . . 1 . . . . Parts Built 2 | . . . . . 1 . 1 . Matter 204 | . . . . . 102 . 102 . Time 50 | . . . . . 25 . 25 . Total Part Build Rating 2 | . . . . . 1 . 1 . Parts Repaired 1 | . . . . . . . 1 . Time 39 | . . . . . 26 . 13 . Parts Recycled . | . . . . . . . . . Recycled Matter . | . . . . . . . . . Retrieved Matter . | . . . . . . . . . Retrieved Components . | . . . . . . . . . Parts Scanalyzed . | . . . . . . . . . Part Schematics Acquired . | . . . . . . . . . Parts Damaged . | . . . . . . . . . Bothacking | -11 -10 -9 -9 -8 -7 -7 -7 -7 ------------ Run | Scr Mat Mat Min Mat Fac Was Fac Low Used RIF Installer . | . . . . . . . . . Robots Hacked . | . . . . . . . . . Non-combat . | . . . . . . . . . Combat . | . . . . . . . . . Robot Hacks Applied . | . . . . . . . . . Relay Couplers Released . | . . . . . . . . . Robots Rewired 2 | . . . . . . . . 2 Allies Hacked . | . . . . . . . . . Hacks Repelled . | . . . . . . . . . Allies | -11 -10 -9 -9 -8 -7 -7 -7 -7 -------- Run | Scr Mat Mat Min Mat Fac Was Fac Low Total Allies 2 | . . . . . . . . 2 Largest Group 2 | . . . . . . . . 2 Highest-Rated Group 50 | . . . . . . . . 50 Highest-Rated Ally 30 | . . . . . . . . 30 Total Orders . | . . . . . . . . . Ally Attacks 12 | . . . . . . . . 12 Total Damage 270 | . . . . . . . . 270 Kills . | . . . . . . . . . Allies Corrupted . | . . . . . . . . . Allies Melted . | . . . . . . . . . Intel | -11 -10 -9 -9 -8 -7 -7 -7 -7 ------- Run | Scr Mat Mat Min Mat Fac Was Fac Low Robot Analysis Total . | . . . . . . . . . Derelict Logs Recovered . | . . . . . . . . . Drone Launches . | . . . . . . . . . Drone Recoveries . | . . . . . . . . . Exploration | -11 -10 -9 -9 -8 -7 -7 -7 -7 ------------- Run | Scr Mat Mat Min Mat Fac Was Fac Low Turns Passed 3780 | 53 175 177 143 560 663 317 1102 590 Spaces Moved 2273 | 42 147 119 123 269 416 263 568 326 Core 4 | 4 . . . . . . . . Treads . | . . . . . . . . . Legs . | . . . . . . . . . Wheels 2269 | 38 147 119 123 269 416 263 568 326 Hover . | . . . . . . . . . Flight . | . . . . . . . . . Fastest Speed 50 | 50 100 100 110 100 100 113 113 120 Average Speed 117 | 95 109 101 110 110 109 113 121 144 Slowest Speed 190 | 100 110 110 110 120 116 113 190 160 Overloaded Moves . | . . . . . . . . . Propulsion Burnouts . | . . . . . . . . . Robots Hopped . | . . . . . . . . . Cave-ins Triggered . | . . . . . . . . . Exploration Rate (%) 31 | 3 25 10 38 31 13 89 20 53 Regions Visited 8 Branch Regions 2 Pre-discovered Areas 1 | . . . 1 . . . . . Known Exits Taken . | . . . . . . . . . Unknown Exits Taken 6 | 1 1 1 1 1 . . 1 . Scrap Searched 1 | . . . 1 . . . . . Spaces Dug . | . . . . . . . . . Terrain Destroyed 108 | . . 3 . 56 40 . 7 2 Melee . | . . . . . . . . . Projectile 9 | . . . . . . . 7 2 AOE 99 | . . 3 . 56 40 . . . Actions | -11 -10 -9 -9 -8 -7 -7 -7 -7 --------- Run | Scr Mat Mat Min Mat Fac Was Fac Low Total 2982 | 52 161 154 130 428 569 288 815 385 Wait 241 | . . 6 4 37 81 . 107 6 Move 2266 | 41 146 118 122 268 416 262 567 326 Hop . | . . . . . . . . . Pick Up 90 | 5 12 8 4 25 11 7 16 2 Fast Attach 21 | 5 1 . . 3 2 3 7 . Attach 45 | 1 . 3 . 13 8 1 8 11 Detach 4 | . . . . . 2 . . 2 Swap 28 | . 1 3 . 5 13 . 6 . Drop 51 | . 1 5 . 11 8 14 11 1 Fire 214 | . . 11 . 66 21 . 85 31 Melee 7 | . . . . . 7 . . . Ram . | . . . . . . . . . Kick . | . . . . . . . . . Crush . | . . . . . . . . . Escape Stasis 8 | . . . . . . . 8 . Rewire 7 | . . . . . . 1 . 6 Trap . | . . . . . . . . . Miscellaneous . | . . . . . . . . . Route ------- -11/Scrapyard -10/Materials -9/Materials -9/Mines -8/Materials -7/Factory -7/Waste -7/Factory -7/Lower Caves History --------- Turn | Location | Event 17 | -11/Scrapyard | Discovered new exit (range 15) 54 | -11/Scrapyard | Entered Materials 213 | -10/Materials | Discovered new exit (range 16) 229 | -10/Materials | Entered another Materials area 229 | -9/Materials | Evolved 2 slots: Propulsion x1, Utility x1 307 | -9/Materials | Build established: Mutant 310 | -9/Materials | Discovered new exit (range 7) 406 | -9/Materials | Entered Mines 407 | -9/Mines | Learned location of Storage (-9) 423 | -9/Mines | Found a damaged Exp. Sensor Array with a note attached 425 | -9/Mines | Found Prototype Device 506 | -9/Mines | Assisted by bots powering up and referring to "LRC-V3" 532 | -9/Mines | Discovered new exit (range 16) 549 | -9/Mines | Entered Materials 549 | -8/Materials | Evolved 2 slots: Utility x2 675 | -8/Materials | Build established: Hauler-Mutant 718 | -8/Materials | Lost 3 parts (1p1n1u) 1019 | -8/Materials | Discovered new exit (range 16) 1109 | -8/Materials | Entered Factory 1109 | -7/Factory | Evolved 2 slots: Utility x2 1152 | -7/Factory | Fabricated Hcp. Storage Unit (x1) 1204 | -7/Factory | Local fabrication network quarantined 1509 | -7/Factory | First assault squad dispatched 1772 | -7/Factory | Sucked down chute 1772 | -7/Factory | Entered Waste 1772 | -7/Waste | The area was eerily silent 1978 | -7/Waste | Found Damper Plating 2050 | -7/Waste | Found Damper Plating 2074 | -7/Waste | Discovered new exit (range 12) 2089 | -7/Waste | Entered Factory 2638 | -7/Factory | Lost 3 parts (1p1n1w) 2679 | -7/Factory | Fabricated Hcp. Storage Unit (x1) 2773 | -7/Factory | Core integrity fell below 50% 2853 | -7/Factory | Repaired Lrg. Storage Unit 3113 | -7/Factory | Discovered new exit (range 9) 3191 | -7/Factory | Entered Lower Caves 3217 | -7/Lower Caves | Attracted the attention of an 0b10 outpost 3271 | -7/Lower Caves | Core integrity fell below 20% 3299 | -7/Lower Caves | Lost 6 parts (2n1u3w) 3409 | -7/Lower Caves | Spotted B-75 Beast 3751 | -7/Lower Caves | Attracted the attention of an 0b10 checkpoint 3781 | -7/Lower Caves | Destroyed by G-47 Trooper with Particle Gun Last Messages --------------- 03409_ Com. Wheel destroyed. 03420_ Fighter 4a knocked back. 03420_ Fighter 4a suffers critical hit. 03423_ Fighter 4a knocked back. 03426_ Fighter 4a destroyed. 03434_ Critical hit. 03437_ Hvy. Laser destroyed. 03455_ Discarded Adv. Targeting Computer. 03472_ Gladiator 4a destroyed. 03593_ S=3WZBP2JFFS% %E/LMSN#C/MV 03600_ Acquired 4 matter. 03602_ Acquired 16 matter. 03710_ G-47 Trooper destroyed. 03717_ Particle Gun fries itself beyond repair. 03720_ Aluminum Leg fries itself beyond repair. 03735_ Overheating: Energy bleed (-21). 03751_ Y-54 Guardian: "INTERCEPTING UNREGISTERED DERELICT." 03768_ Mic. Nuclear Core destroyed. 03770_ Damper Plating destroyed. 03774_ Particle Cannon destroyed. Map ----- +----------------------------------------------------+ | ?????????????????????????????????????????????????? | | ?????????????????????????????????????????????????? | | ?????????????????????????????????????????????????? | | ?????????????????????????????????????????????????? | | ?????????????????????????????????????????????????? | | ?????????????????????????????????????????????????? | | ?????????????????????????????????????????????????? | | ?????????????????????????????????????????????????? | | ?????????????????????????????????????????????????? | | ?????????????????????????????????????????????????? | | ?????????????????????????????????????????????????? | | ?????????????????????????????????????????????????? | | ?????????????????????########????####????????????? | | ???????????????###??## ###### ##???????????? | | ???????????????# ?# ## #???????????? | | ??????????????? #?# #???######### | | ??????????????? ###### ##?#### | | ????????????????? #???## #??# ## | | ??????????????????# #???## ##?# #### | | ???????????????##??# #???## #### ##?### | | ??????????????## ### #####Y ### #???# | | ??????????????# g #???# | | ??????????????# g ##???# | | ?????????????????# ###????# | | ?????????????????# l ##?????? | | ?????????????????#$ @ ## ##???????# | | ?????????????????# ########## ###????????? | | ?????????????????# ?????????# #??????????? | | ?????????????????## ??????????# #??????????? | | ??????????????????# ??????????## ##??????????? | | ??????????????????# ????????????###???????????? | | ????????????????? ##??????????????????????????? | | ???????????????? ????????????????????????????? | | ??????????????? % ?????????????????????????????? | | ????????????? ??????????????????????????????? | | ??????????????# #???????????????????????????????? | | ??????????????###????????????????????????????????? | | ?????????????????????????????????????????????????? | | ?????????????????????????????????????????????????? | | ?????????????????????????????????????????????????? | | ?????????????????????????????????????????????????? | | ?????????????????????????????????????????????????? | | ?????????????????????????????????????????????????? | | ?????????????????????????????????????????????????? | | ?????????????????????????????????????????????????? | | ?????????????????????????????????????????????????? | | ?????????????????????????????????????????????????? | | ?????????????????????????????????????????????????? | | ?????????????????????????????????????????????????? | | ?????????????????????????????????????????????????? | +----------------------------------------------------+ Best States ------------- Heat Dissipation 53 Energy Generation 21 Energy Capacity 325 Matter Stores 300 Matter Capacity 300 Sight Range 16 Terrain Scan Density 10 Armor Coverage 1200 Resistance: EM 90 Propulsion Shielding 33 Evasion (%) 40 Targeting Accuracy 16 Item Schematics ----------------- Hcp. Storage Unit | -8/Materials | Hacked Robot Schematics ------------------ None Fabricated ------------ Hcp. Storage Unit | x1 | -7/Factory Hcp. Storage Unit | x1 | -7/Factory Alien Tech Used ----------------- None Achievements -------------- None Challenges ------------ None Game ------ Seed CatalystBoreClaws Manual? 0 Play Time 00:39:04 Cumulative 452.9 hours Start 2019.11.13 @ 12:53:06 End 2019.11.13 @ 14:19:28 Sessions 3 Manual Loads 0 Difficulty Rogue Special Mode None Game No. 293 Rogue 293 Adventurer 0 Explorer 0 Win Type - Total 31 Types 20/1/5/5/0/0/0 Lore% 88 Gallery% 88 Achievement% 76 Wizard Run 0 Options --------- ASCII 1 Keyboard 0 Movement Numpad Keybinds 0 Fullscreen 2 Font 18/SmallcapsGlow Map View 76x50 Tactical HUD 1 Map Filters NONE Filters NONE Steam 1 RUN: 8b14e964-3345-4644-af22-b4f63cddfe9f